fUSD/lending_fUSD_20250112
["ID","MTS","AMOUNT","RATE_DAILY","PERIOD"]
[348686038,1736716243135,-269.3303955,0.00010347,2]
[348686040,1736716243144,-500.0,0.00010347,2]
[348686042,1736716243153,-500.0,0.00010347,2]
[348686044,1736716243162,-510.11,0.00010347,2]
[348686046,1736716243171,-500.0,0.00010347,2]
[348686048,1736716243181,-500.0,0.00010347,2]
[348686050,1736716243189,-664.54,0.00010347,2]
[348686052,1736716243199,-407.41,0.00010347,2]
[348686054,1736716243207,-500.0,0.00010347,2]
[348686056,1736716243216,-500.0,0.00010347,2]
[348686057,1736716243225,-656.47,0.00010347,2]
[348686059,1736716243235,-500.0,0.00010347,2]
[348686061,1736716243246,-500.0,0.00010347,2]
[348686063,1736716243256,-500.0,0.00010347,2]
[348686065,1736716243266,-513.94,0.00010347,2]
[348686067,1736716243275,-500.0,0.00010347,2]
[348686069,1736716243284,-500.0,0.00010347,2]
[348686071,1736716243294,-586.47,0.00010347,2]
[348686073,1736716243303,-500.0,0.00010347,2]
[348686075,1736716243312,-500.0,0.00010347,2]
[348686077,1736716243322,-500.0,0.00010347,2]
[348686079,1736716243332,-500.0,0.00010347,2]
[348686081,1736716243342,-549.75,0.00010347,2]
[348686083,1736716243352,-500.0,0.00010347,2]
[348686085,1736716243361,-500.0,0.00010347,2]
[348686087,1736716243370,-500.0,0.00010347,2]
[348686089,1736716243379,-519.01,0.00010347,2]
[348686091,1736716243388,-500.0,0.00010347,2]
[348686093,1736716243399,-500.0,0.00010347,2]
[348686095,1736716243407,-686.15,0.00010347,2]
[348686097,1736716243417,-670.09,0.00010347,2]
[348686099,1736716243426,-753.63,0.00010347,2]
[348686101,1736716243434,-777.83,0.00010347,2]
[348686103,1736716243443,-500.0,0.00010347,2]
[348686105,1736716243453,-500.0,0.00010347,2]
[348686107,1736716243461,-500.0,0.00010347,2]
[348686109,1736716243470,-610.24,0.00010347,2]
[348686111,1736716243479,-500.0,0.00010347,2]
[348686114,1736716243488,-644.42,0.00010347,2]
[348686116,1736716243497,-500.0,0.00010347,2]
[348686117,1736716243506,-500.0,0.00010347,2]
[348686119,1736716243515,-635.29,0.00010347,2]
[348686121,1736716243524,-635.42,0.00010347,2]
[348686123,1736716243533,-563.42,0.00010347,2]
[348686125,1736716243542,-500.0,0.00010347,2]
[348686127,1736716243551,-629.34,0.00010347,2]
[348686129,1736716243560,-500.0,0.00010347,2]
[348686131,1736716243570,-500.0,0.00010347,2]
[348686133,1736716243580,-781.14,0.00010347,2]
[348686135,1736716243589,-500.0,0.00010347,2]
[348686137,1736716243599,-749.61,0.00010347,2]
[348686139,1736716243607,-807.51,0.00010347,2]
[348686141,1736716243616,-158.21071826,0.00010391,2]
[348686143,1736716243626,-420.06559784,0.00010441,2]
[348686145,1736716243635,-805.17,0.00010442,2]
[348686147,1736716243644,-1093.8,0.00010454,2]
[348686149,1736716243653,-1958.5,0.00010454,2]
[348686151,1736716243662,-744.09,0.00010454,2]
[348686153,1736716243671,-781.68,0.00010454,2]
[348686155,1736716243680,-781.68,0.00010454,2]
[348686156,1736716243689,-1566.34,0.00010454,2]
[348686158,1736716243698,-1055.33,0.00010454,2]
[348686160,1736716243707,-1397.19,0.00010454,2]
[348686162,1736716243716,-1061.77,0.00010454,2]
[348686164,1736716243725,-2921.69,0.00010454,2]
[348686166,1736716243734,-1237.0,0.00010454,2]
[348686168,1736716243743,-1851.39,0.00010454,2]
[348686170,1736716243752,-956.89,0.00010454,2]
[348686172,1736716243761,-1036.48,0.00010454,2]
[348686174,1736716243770,-500.0,0.00010454,2]
[348686176,1736716243779,-787.12,0.00010454,2]
[348686178,1736716243788,-1763.84,0.00010454,2]
[348686180,1736716243797,-895.89,0.00010454,2]
[348686182,1736716243806,-910.44,0.00010454,2]
[348686184,1736716243815,-939.06,0.00010454,2]
[348686186,1736716243824,-638.79,0.00010454,2]
[348686188,1736716243834,-1091.78,0.00010454,2]
[348686190,1736716243843,-923.82,0.00010454,2]
[348686192,1736716243851,-1060.51,0.00010454,2]
[348686194,1736716243860,-1338.38,0.00010454,2]
[348686196,1736716243869,-922.53,0.00010454,2]
[348686198,1736716243878,-158.21071826,0.00010461,2]
[348686200,1736716243887,-772.19,0.0001049,2]
[348686202,1736716243896,-772.19,0.0001049,2]
[348686204,1736716243905,-772.19,0.0001049,2]
[348686206,1736716243914,-772.19,0.0001049,2]
[348686208,1736716243923,-437.93,0.0001049,2]
[348686210,1736716243933,-437.93,0.0001049,2]
[348686212,1736716243942,-772.19,0.0001049,2]
[348686214,1736716243951,-73267.7751,0.00010521,2]
[348686216,1736716243960,-163.853,0.0001053,2]
[348686218,1736716243969,-158.21071826,0.00010531,2]
[348686220,1736716243978,-1521.5,0.00010546,2]
[348686222,1736716243987,-1421.6,0.00010546,2]
[348686224,1736716243996,-2031.45,0.00010546,2]
[348686226,1736716244006,-3914.3,0.00010546,2]
[348686227,1736716244015,-827.37,0.00010546,2]
[348686230,1736716244025,-634.33,0.00010547,2]
[348686232,1736716244034,-723.47,0.00010547,2]
[348686233,1736716244044,-1666.5,0.00010547,2]
[348686236,1736716244054,-500.0,0.00010547,2]
[348686237,1736716244063,-810.78,0.00010547,2]
[348686239,1736716244072,-1080.98,0.00010547,2]
[348686241,1736716244081,-1242.49,0.00010547,2]
[348686243,1736716244090,-749.73,0.00010547,2]
[348686245,1736716244100,-1000.0,0.00010547,2]
[348686247,1736716244110,-931.41,0.00010547,2]
[348686249,1736716244119,-500.0,0.00010547,2]
[348686251,1736716244128,-1854.57,0.00010547,2]
[348686253,1736716244137,-1443.21,0.00010547,2]
[348686255,1736716244146,-420.06559784,0.00010548,2]
[348686257,1736716244156,-158.21071826,0.00010601,2]
[348686259,1736716244165,-500.0,0.0001062,2]
[348686262,1736716244175,-513.59,0.0001062,2]
[348686264,1736716244184,-748.09,0.0001062,2]
[348686266,1736716244195,-535.62,0.0001062,2]
[348686268,1736716244204,-543.19,0.0001062,2]
[348686270,1736716244213,-500.0,0.0001062,2]
[348686272,1736716244223,-500.0,0.0001062,2]
[348686274,1736716244232,-500.0,0.0001062,2]
[348686276,1736716244242,-541.06,0.0001062,2]
[348686278,1736716244255,-500.0,0.0001062,2]
[348686280,1736716244265,-526.92,0.0001062,2]
[348686282,1736716244274,-517.06,0.0001062,2]
[348686283,1736716244283,-500.0,0.0001062,2]
[348686286,1736716244293,-500.0,0.0001062,2]
[348686288,1736716244303,-500.0,0.0001062,2]
[348686289,1736716244312,-629.33,0.0001062,2]
[348686291,1736716244321,-682.87,0.0001062,2]
[348686293,1736716244331,-500.0,0.0001062,2]
[348686296,1736716244340,-569.51,0.0001062,2]
[348686297,1736716244349,-500.0,0.0001062,2]
[348686299,1736716244359,-569.68,0.0001062,2]
[348686301,1736716244368,-500.0,0.0001062,2]
[348686303,1736716244377,-591.32,0.0001062,2]
[348686305,1736716244386,-500.0,0.0001062,2]
[348686307,1736716244396,-500.0,0.0001062,2]
[348686309,1736716244405,-500.0,0.0001062,2]
[348686311,1736716244414,-277.28468808,0.0001062,2]
[348686313,1736716244423,-646.32,0.0001062,2]
[348686315,1736716244433,-650.32,0.0001062,2]
[348686317,1736716244442,-500.0,0.0001062,2]
[348686319,1736716244451,-593.51357,0.0001062,2]
[348686321,1736716244461,-525.84,0.0001062,2]
[348686323,1736716244470,-695.51,0.0001062,2]
[348686325,1736716244479,-584.49,0.0001062,2]
[348686327,1736716244489,-522.659471,0.0001062,2]
[348686329,1736716244498,-636.68,0.0001062,2]
[348686331,1736716244507,-592.13,0.0001062,2]
[348686333,1736716244516,-500.0,0.0001062,2]
[348686335,1736716244525,-2629.02,0.0001062,2]
[348686337,1736716244534,-734.86,0.0001062,2]
[348686339,1736716244543,-575.59,0.0001062,2]
[348686341,1736716244552,-552.75,0.0001062,2]
[348686343,1736716244561,-500.0,0.0001062,2]
[348686344,1736716244571,-727.34,0.0001062,2]
[348686347,1736716244581,-500.0,0.0001062,2]
[348686348,1736716244591,-500.0,0.0001062,2]
[348686351,1736716244600,-464.46,0.0001062,2]
[348686353,1736716244610,-500.0,0.0001062,2]
[348686355,1736716244619,-874.85,0.0001062,2]
[348686357,1736716244628,-500.0,0.0001062,2]
[348686359,1736716244637,-530.37,0.0001062,2]
[348686361,1736716244646,-653.99,0.0001062,2]
[348686362,1736716244655,-517.14,0.0001062,2]
[348686364,1736716244664,-500.0,0.0001062,2]
[348686366,1736716244673,-500.0,0.0001062,2]
[348686368,1736716244682,-531.57,0.0001062,2]
[348686370,1736716244691,-641.29,0.0001062,2]
[348686372,1736716244700,-500.0,0.0001062,2]
[348686375,1736716244710,-628.58,0.0001062,2]
[348686376,1736716244719,-500.0,0.0001062,2]
[348686378,1736716244728,-765.22,0.0001062,2]
[348686380,1736716244737,-1370.1,0.0001062,2]
[348686382,1736716244746,-679.25,0.0001062,2]
[348686384,1736716244755,-859.85,0.0001062,2]
[348686386,1736716244764,-500.0,0.0001062,2]
[348686388,1736716244773,-4148.7,0.0001062,2]
[348686390,1736716244782,-649.21,0.0001062,2]
[348686391,1736716244790,-563.27,0.0001062,2]
[348686392,1736716244799,-2868.01,0.0001062,2]
[348686393,1736716244808,-509.07,0.0001062,2]
[348686394,1736716244817,-500.0,0.0001062,2]
[348686395,1736716244826,-2824.82,0.0001062,2]
[348686396,1736716244835,-530.97,0.0001062,2]
[348686397,1736716244844,-631.88,0.0001062,2]
[348686398,1736716244854,-764.58,0.0001062,2]
[348686399,1736716244863,-1971.2,0.0001062,2]
[348686401,1736716244872,-560.31,0.0001062,2]
[348686403,1736716244881,-500.0,0.0001062,2]
[348686405,1736716244890,-1683.99,0.0001062,2]
[348686407,1736716244899,-513.48,0.0001062,2]
[348686409,1736716244908,-695.93,0.0001062,2]
[348686411,1736716244917,-500.0,0.0001062,2]
[348686413,1736716244926,-600.21,0.0001062,2]
[348686415,1736716244935,-500.0,0.0001062,2]
[348686417,1736716244943,-1241.34,0.0001062,2]
[348686419,1736716244952,-1685.64,0.0001062,2]
[348686421,1736716244961,-720.14,0.0001062,2]
[348686423,1736716244970,-2357.49,0.0001062,2]
[348686425,1736716244979,-872.71,0.0001062,2]
[348686426,1736716244988,-1217.62,0.0001062,2]
[348686428,1736716244997,-500.0,0.0001062,2]
[348686430,1736716245007,-732.33,0.0001062,2]
[348686432,1736716245017,-3053.93,0.0001062,2]
[348686434,1736716245026,-559.78,0.0001062,2]
[348686437,1736716245035,-629.63,0.0001062,2]
[348686438,1736716245044,-500.0,0.0001062,2]
[348686440,1736716245053,-2033.7,0.0001062,2]
[348686443,1736716245062,-837.74,0.0001062,2]
[348686444,1736716245071,-1673.88,0.0001062,2]
[348686446,1736716245079,-860.74,0.0001062,2]
[348686449,1736716245089,-500.0,0.0001062,2]
[348686451,1736716245098,-575.88,0.0001062,2]
[348686453,1736716245107,-500.0,0.0001062,2]
[348686455,1736716245117,-589.49,0.0001062,2]
[348686457,1736716245126,-500.0,0.0001062,2]
[348686459,1736716245135,-827.31,0.0001062,2]
[348686461,1736716245144,-813.4,0.0001062,2]
[348686463,1736716245153,-618.03,0.0001062,2]
[348686465,1736716245162,-960.13,0.0001062,2]
[348686467,1736716245170,-1213.75,0.0001062,2]
[348686469,1736716245179,-651.11,0.0001062,2]
[348686471,1736716245188,-500.0,0.0001062,2]
[348686473,1736716245197,-1197.65,0.0001062,2]
[348686475,1736716245206,-500.0,0.0001062,2]
[348686477,1736716245215,-1171.04,0.0001062,2]
[348686478,1736716245224,-500.0,0.0001062,2]
[348686481,1736716245233,-782.75,0.0001062,2]
[348686482,1736716245242,-539.89,0.0001062,2]
[348686485,1736716245256,-1047.31,0.0001062,2]
[348686486,1736716245265,-770.45,0.0001062,2]
[348686488,1736716245274,-661.09,0.0001062,2]
[348686490,1736716245283,-634.34,0.0001062,2]
[348686492,1736716245293,-595.07,0.0001062,2]
[348686494,1736716245302,-500.0,0.0001062,2]
[348686496,1736716245312,-1715.14,0.0001062,2]
[348686498,1736716245321,-727.56,0.0001062,2]
[348686500,1736716245332,-572.73,0.0001062,2]
[348686502,1736716245342,-500.0,0.00010621,2]
[348686504,1736716245351,-500.0,0.00010621,2]
[348686506,1736716245361,-500.0,0.00010621,2]
[348686508,1736716245370,-500.0,0.00010621,2]
[348686510,1736716245379,-500.0,0.00010621,2]
[348686512,1736716245390,-510.11,0.00010621,2]
[348686514,1736716245400,-500.0,0.00010621,2]
[348686540,1736716245588,-500.0,0.00010621,2]
[348686543,1736716245597,-664.54,0.00010621,2]
[348686546,1736716245606,-500.0,0.00010621,2]
[348686549,1736716245615,-500.0,0.00010621,2]
[348686552,1736716245625,-656.47,0.00010621,2]
[348686555,1736716245634,-500.0,0.00010621,2]
[348686558,1736716245643,-500.0,0.00010621,2]
[348686561,1736716245652,-500.0,0.00010621,2]
[348686564,1736716245661,-513.94,0.00010621,2]
[348686567,1736716245670,-500.0,0.00010621,2]
[348686569,1736716245679,-500.0,0.00010621,2]
[348686571,1736716245688,-586.47,0.00010621,2]
[348686573,1736716245698,-500.0,0.00010621,2]
[348686575,1736716245706,-500.0,0.00010621,2]
[348686577,1736716245716,-500.0,0.00010621,2]
[348686579,1736716245725,-500.0,0.00010621,2]
[348686581,1736716245733,-549.75,0.00010621,2]
[348686583,1736716245742,-500.0,0.00010621,2]
[348686585,1736716245752,-500.0,0.00010621,2]
[348686587,1736716245762,-500.0,0.00010621,2]
[348686589,1736716245771,-519.01,0.00010621,2]
[348686591,1736716245780,-500.0,0.00010621,2]
[348686593,1736716245790,-500.0,0.00010621,2]
[348686595,1736716245799,-686.15,0.00010621,2]
[348686597,1736716245808,-670.09,0.00010621,2]
[348686599,1736716245818,-753.63,0.00010621,2]
[348686601,1736716245827,-777.83,0.00010621,2]
[348686603,1736716245836,-500.0,0.00010621,2]
[348686605,1736716245845,-500.0,0.00010621,2]
[348686607,1736716245855,-500.0,0.00010621,2]
[348686609,1736716245863,-610.24,0.00010621,2]
[348686611,1736716245872,-500.0,0.00010621,2]
[348686613,1736716245882,-644.42,0.00010621,2]
[348686615,1736716245891,-500.0,0.00010621,2]
[348686617,1736716245900,-500.0,0.00010621,2]
[348686619,1736716245909,-635.29,0.00010621,2]
[348686621,1736716245919,-635.42,0.00010621,2]
[348686623,1736716245928,-563.42,0.00010621,2]
[348686625,1736716245938,-500.0,0.00010621,2]
[348686626,1736716245947,-629.34,0.00010621,2]
[348686627,1736716245956,-500.0,0.00010621,2]
[348686628,1736716245967,-500.0,0.00010621,2]
[348686629,1736716245976,-781.14,0.00010621,2]
[348686630,1736716245985,-500.0,0.00010621,2]
[348686631,1736716245994,-749.61,0.00010621,2]
[348686632,1736716246003,-807.51,0.00010621,2]
[348686633,1736716246013,-420.06559784,0.00010655,2]
[348686634,1736716246022,-158.21071826,0.00010671,2]
[348686635,1736716246032,-1093.8,0.00010728,2]
[348686636,1736716246042,-1958.5,0.00010728,2]
[348686637,1736716246051,-781.68,0.00010728,2]
[348686638,1736716246060,-781.68,0.00010728,2]
[348686639,1736716246070,-1055.33,0.00010728,2]
[348686641,1736716246079,-1397.19,0.00010728,2]
[348686643,1736716246089,-2921.69,0.00010728,2]
[348686644,1736716246098,-1237.0,0.00010728,2]
[348686645,1736716246108,-1851.39,0.00010728,2]
[348686646,1736716246117,-956.89,0.00010728,2]
[348686647,1736716246126,-1036.48,0.00010728,2]
[348686648,1736716246135,-787.12,0.00010728,2]
[348686649,1736716246145,-1763.84,0.00010728,2]
[348686650,1736716246155,-895.89,0.00010728,2]
[348686651,1736716246164,-910.44,0.00010728,2]
[348686652,1736716246173,-939.06,0.00010728,2]
[348686653,1736716246182,-638.79,0.00010728,2]
[348686655,1736716246191,-1091.78,0.00010728,2]
[348686657,1736716246201,-923.82,0.00010728,2]
[348686658,1736716246210,-1060.51,0.00010728,2]
[348686659,1736716246219,-1338.38,0.00010728,2]
[348686660,1736716246228,-922.53,0.00010728,2]
[348686661,1736716246237,-150.0,0.00010735,2]
[348686662,1736716246250,-150.0,0.00010739,2]
[348686663,1736716246259,-158.21071826,0.00010741,2]
[348686664,1736716246269,-150.0,0.00010754,2]
[348686665,1736716246279,-420.06559784,0.00010762,2]
[348686666,1736716246290,-150.0,0.00010764,2]
[348686667,1736716246299,-150.0,0.00010767,2]
[348686668,1736716246308,-255.0,0.00010778,2]
[348686669,1736716246317,-150.0,0.00010779,2]
[348686670,1736716246327,-150.0,0.00010782,2]
[348686671,1736716246336,-150.0,0.00010783,2]
[348686672,1736716246345,-150.0,0.00010788,2]
[348686673,1736716246355,-3000.0,0.0001079,2]
[348686674,1736716246364,-1583.0,0.000108,2]
[348686675,1736716246373,-150.0,0.00010806,2]
[348686676,1736716246382,-158.21071826,0.00010811,2]
[348686677,1736716246391,-150.0,0.00010817,2]
[348686678,1736716246400,-1566.34,0.00010819,2]
[348686679,1736716246409,-1521.5,0.0001082,2]
[348686680,1736716246419,-1421.6,0.0001082,2]
[348686681,1736716246428,-2031.45,0.0001082,2]
[348686682,1736716246437,-3914.3,0.0001082,2]
[348686683,1736716246449,-827.37,0.0001082,2]
[348686684,1736716246460,-5816.832,0.00010821,2]
[348686685,1736716246470,-209.954,0.00010821,2]
[348686686,1736716246482,-634.33,0.00010821,2]
[348686687,1736716246492,-723.47,0.00010821,2]
[348686688,1736716246502,-1666.5,0.00010821,2]
[348686689,1736716246513,-500.0,0.00010821,2]
[348686690,1736716246522,-810.78,0.00010821,2]
[348686691,1736716246534,-1080.98,0.00010821,2]
[348686692,1736716246543,-1242.49,0.00010821,2]
[348686693,1736716246553,-749.73,0.00010821,2]
[348686694,1736716246563,-1000.0,0.00010821,2]
[348686695,1736716246572,-931.41,0.00010821,2]
[348686696,1736716246582,-500.0,0.00010821,2]
[348686697,1736716246591,-1854.57,0.00010821,2]
[348686698,1736716246602,-1443.21,0.00010821,2]
[348686699,1736716246611,-150.0,0.00010826,2]
[348686700,1736716246621,-150.0,0.00010836,2]
[348686701,1736716246632,-150.0,0.00010836,2]
[348686702,1736716246642,-150.0,0.00010838,2]
[348686703,1736716246651,-150.0,0.00010841,2]
[348686704,1736716246661,-150.0,0.00010849,2]
[348686705,1736716246670,-150.0,0.0001085,2]
[348686706,1736716246680,-150.0,0.00010854,2]
[348686707,1736716246690,-150.0,0.0001086,2]
[348686708,1736716246699,-150.0,0.0001086,2]
[348686709,1736716246708,-168.60385471,0.00010864,2]
[348686710,1736716246719,-420.06559784,0.00010869,2]
[348686711,1736716246729,-150.0,0.00010872,2]
[348686712,1736716246738,-158.21071826,0.0001088,2]
[348686713,1736716246748,-30212.0238471,0.00010887,2]
[348686714,1736716246758,-4443.841077,0.00010887,2]
[348686715,1736716246767,-2401.0330676,0.00010887,2]
[348686716,1736716246776,-150.0,0.00010893,2]
[348686717,1736716246786,-500.0,0.00010894,2]
[348686718,1736716246795,-513.59,0.00010894,2]
[348686719,1736716246806,-748.09,0.00010894,2]
[348686720,1736716246818,-535.62,0.00010894,2]
[348686721,1736716246828,-543.19,0.00010894,2]
[348686722,1736716246838,-500.0,0.00010894,2]
[348686723,1736716246848,-500.0,0.00010894,2]
[348686724,1736716246858,-500.0,0.00010894,2]
[348686725,1736716246867,-541.06,0.00010894,2]
[348686726,1736716246875,-500.0,0.00010894,2]
[348686727,1736716246885,-526.92,0.00010894,2]
[348686728,1736716246894,-517.06,0.00010894,2]
[348686729,1736716246906,-500.0,0.00010894,2]
[348686730,1736716246916,-500.0,0.00010894,2]
[348686731,1736716246925,-500.0,0.00010894,2]
[348686732,1736716246934,-629.33,0.00010894,2]
[348686733,1736716246943,-682.87,0.00010894,2]
[348686734,1736716246953,-500.0,0.00010894,2]
[348686735,1736716246962,-569.51,0.00010894,2]
[348686736,1736716246971,-500.0,0.00010894,2]
[348686737,1736716246980,-569.68,0.00010894,2]
[348686738,1736716246989,-500.0,0.00010894,2]
[348686739,1736716246998,-591.32,0.00010894,2]
[348686740,1736716247007,-500.0,0.00010894,2]
[348686741,1736716247016,-244.24312888,0.00010894,2]
[348686742,1736716247026,-500.0,0.00010894,2]
[348686743,1736716247035,-646.32,0.00010894,2]
[348686744,1736716247044,-650.32,0.00010894,2]
[348686745,1736716247053,-500.0,0.00010894,2]
[348686746,1736716247062,-525.84,0.00010894,2]
[348686747,1736716247072,-593.51357,0.00010894,2]
[348686748,1736716247080,-695.51,0.00010894,2]
[348686749,1736716247090,-584.49,0.00010894,2]
[348686750,1736716247099,-522.659471,0.00010894,2]
[348686751,1736716247108,-636.68,0.00010894,2]
[348686752,1736716247117,-592.13,0.00010894,2]
[348686753,1736716247125,-500.0,0.00010894,2]
[348686754,1736716247134,-2629.02,0.00010894,2]
[348686755,1736716247143,-734.86,0.00010894,2]
[348686756,1736716247153,-575.59,0.00010894,2]
[348686757,1736716247163,-500.0,0.00010894,2]
[348686758,1736716247172,-552.75,0.00010894,2]
[348686759,1736716247181,-500.0,0.00010894,2]
[348686760,1736716247190,-727.34,0.00010894,2]
[348686761,1736716247200,-500.0,0.00010894,2]
[348686762,1736716247210,-500.0,0.00010894,2]
[348686763,1736716247219,-500.0,0.00010894,2]
[348686764,1736716247229,-931.75,0.00010894,2]
[348686765,1736716247238,-874.85,0.00010894,2]
[348686766,1736716247250,-500.0,0.00010894,2]
[348686767,1736716247260,-530.37,0.00010894,2]
[348686768,1736716247269,-653.99,0.00010894,2]
[348686769,1736716247280,-517.14,0.00010894,2]
[348686770,1736716247290,-500.0,0.00010894,2]
[348686771,1736716247301,-500.0,0.00010894,2]
[348686772,1736716247311,-902.27,0.00010894,2]
[348686773,1736716247320,-531.57,0.00010894,2]
[348686774,1736716247330,-641.29,0.00010894,2]
[348686775,1736716247340,-500.0,0.00010894,2]
[348686776,1736716247349,-628.58,0.00010894,2]
[348686777,1736716247358,-500.0,0.00010894,2]
[348686778,1736716247367,-765.22,0.00010894,2]
[348686779,1736716247376,-1357.6,0.00010894,2]
[348686780,1736716247385,-1370.1,0.00010894,2]
[348686781,1736716247395,-679.25,0.00010894,2]
[348686782,1736716247403,-859.85,0.00010894,2]
[348686783,1736716247413,-500.0,0.00010894,2]
[348686784,1736716247422,-4148.7,0.00010894,2]
[348686785,1736716247431,-649.21,0.00010894,2]
[348686786,1736716247440,-563.27,0.00010894,2]
[348686787,1736716247449,-2868.01,0.00010894,2]
[348686788,1736716247458,-509.07,0.00010894,2]
[348686789,1736716247467,-500.0,0.00010894,2]
[348686790,1736716247476,-530.97,0.00010894,2]
[348686791,1736716247485,-2824.82,0.00010894,2]
[348686792,1736716247495,-944.81,0.00010894,2]
[348686793,1736716247504,-631.88,0.00010894,2]
[348686794,1736716247513,-764.58,0.00010894,2]
[348686795,1736716247522,-1971.2,0.00010894,2]
[348686796,1736716247532,-560.31,0.00010894,2]
[348686797,1736716247541,-520.26484272,0.00010894,2]
[348686798,1736716247550,-1683.99,0.00010894,2]
[348686799,1736716247561,-513.48,0.00010894,2]
[348686800,1736716247572,-695.93,0.00010894,2]
[348686801,1736716247582,-500.0,0.00010894,2]
[348686802,1736716247591,-600.21,0.00010894,2]
[348686803,1736716247600,-500.0,0.00010894,2]
[348686804,1736716247611,-1241.34,0.00010894,2]
[348686805,1736716247621,-1685.64,0.00010894,2]
[348686806,1736716247629,-720.14,0.00010894,2]
[348686807,1736716247638,-2357.49,0.00010894,2]
[348686808,1736716247647,-872.71,0.00010894,2]
[348686809,1736716247656,-1750.55,0.00010894,2]
[348686810,1736716247666,-1217.62,0.00010894,2]
[348686811,1736716247675,-500.0,0.00010894,2]
[348686812,1736716247684,-732.33,0.00010894,2]
[348686813,1736716247693,-3053.93,0.00010894,2]
[348686814,1736716247703,-559.78,0.00010894,2]
[348686815,1736716247713,-629.63,0.00010894,2]
[348686816,1736716247722,-500.0,0.00010894,2]
[348686817,1736716247733,-2033.7,0.00010894,2]
[348686818,1736716247743,-837.74,0.00010894,2]
[348686819,1736716247752,-1673.88,0.00010894,2]
[348686820,1736716247763,-1213.76,0.00010894,2]
[348686821,1736716247772,-860.74,0.00010894,2]
[348686822,1736716247782,-500.0,0.00010894,2]
[348686823,1736716247792,-575.88,0.00010894,2]
[348686824,1736716247801,-500.0,0.00010894,2]
[348686825,1736716247811,-589.49,0.00010894,2]
[348686826,1736716247822,-500.0,0.00010894,2]
[348686827,1736716247833,-827.31,0.00010894,2]
[348686828,1736716247842,-618.03,0.00010894,2]
[348686829,1736716247852,-813.4,0.00010894,2]
[348686830,1736716247862,-960.13,0.00010894,2]
[348686831,1736716247872,-1213.75,0.00010894,2]
[348686832,1736716247881,-2920.31,0.00010894,2]
[348686833,1736716247948,-651.11,0.00010894,2]
[348686834,1736716247958,-500.0,0.00010894,2]
[348686835,1736716247968,-500.0,0.00010894,2]
[348686836,1736716247977,-1197.65,0.00010894,2]
[348686837,1736716247986,-1171.04,0.00010894,2]
[348686838,1736716247995,-500.0,0.00010894,2]
[348686839,1736716248004,-782.75,0.00010894,2]
[348686840,1736716248013,-539.89,0.00010894,2]
[348686841,1736716248022,-1047.31,0.00010894,2]
[348686842,1736716248032,-770.45,0.00010894,2]
[348686843,1736716248041,-661.09,0.00010894,2]
[348686844,1736716248051,-595.07,0.00010894,2]